[Event "*** Qualifier 1: Titled Tuesday 3|2 Blitz"]
[Site "Chess.com"]
[Date "2017.04.04"]
[Round "1"]
[White "StoreySniper"]
[Black "nihalsarin"]
[Result "0-1"]
[WhiteElo "2225"]
[BlackElo "2532"]
[TimeControl "180+2"]
[EndTime "13:07:09 PDT"]
[Termination "nihalsarin won by resignation"]

1. e4 {[%clk 0:03:02]} 1... e5 {[%clk 0:03:00.7]} 2. Nf3 {[%clk 0:03:02]} 2...
Nc6 {[%clk 0:03:00.7]} 3. Bc4 {[%clk 0:03:02.5]} 3... Bc5 {[%clk 0:02:57.9]} 4.
d3 {[%clk 0:03:03.3]} 4... Nf6 {[%clk 0:02:58.3]} 5. O-O {[%clk 0:02:57.3]} 5...
d6 {[%clk 0:02:59.3]} 6. c3 {[%clk 0:02:57.4]} 6... O-O {[%clk 0:02:58.9]} 7. h3
{[%clk 0:02:57.8]} 7... a6 {[%clk 0:02:57.9]} 8. a4 {[%clk 0:02:57.7]} 8... Ba7
{[%clk 0:02:58.2]} 9. Bg5 {[%clk 0:02:47]} 9... h6 {[%clk 0:02:58.9]} 10. Bh4
{[%clk 0:02:42]} 10... g5 {[%clk 0:02:59.7]} 11. Nxg5 {[%clk 0:02:43.2]} 11...
hxg5 {[%clk 0:02:55.8]} 12. Bxg5 {[%clk 0:02:45.1]} 12... Kg7 {[%clk 0:02:57.4]}
13. Kh1 {[%clk 0:02:27]} 13... Kg6 {[%clk 0:01:54.6]} 14. f4 {[%clk 0:02:15.9]}
14... exf4 {[%clk 0:01:54.4]} 15. Bxf4 {[%clk 0:01:46.3]} 15... Nh5 {[%clk
0:01:53.7]} 16. Bh2 {[%clk 0:01:32.7]} 16... Qg5 {[%clk 0:01:48]} 17. Qf3 {[%clk
0:01:22.8]} 17... Ne5 {[%clk 0:01:46.3]} 18. Bxe5 {[%clk 0:01:23.2]} 18... dxe5
{[%clk 0:01:43.8]} 19. Bxf7+ {[%clk 0:01:24.6]} 19... Kg7 {[%clk 0:01:23.5]} 20.
Bxh5 {[%clk 0:00:55.5]} 20... Rxf3 {[%clk 0:01:21.5]} 21. Bxf3 {[%clk
0:00:56.7]} 21... Qg3 {[%clk 0:00:57.6]} 22. d4 {[%clk 0:00:42.8]} 22... exd4
{[%clk 0:00:57.7]} 23. cxd4 {[%clk 0:00:21.7]} 23... Bxd4 {[%clk 0:00:58.7]} 24.
Rd1 {[%clk 0:00:22.5]} 24... Ba7 {[%clk 0:00:53.9]} 25. Ra3 {[%clk 0:00:20.1]}
25... Bxh3 {[%clk 0:00:52.9]} 26. e5 {[%clk 0:00:20.2]} 26... Bxg2+ {[%clk
0:00:52]} 0-1

[Event "*** Qualifier 1: Titled Tuesday 3|2 Blitz"]
[Site "Chess.com"]
[Date "2017.04.04"]
[Round "1"]
[White "Rodalquilar"]
[Black "TooOldTooSlow70"]
[Result "1-0"]
[WhiteElo "2572"]
[BlackElo "2244"]
[TimeControl "180+2"]
[EndTime "13:07:12 PDT"]
[Termination "Rodalquilar won by resignation"]

1. d4 {[%clk 0:03:01.6]} 1... Nf6 {[%clk 0:02:59.6]} 2. Bf4 {[%clk 0:03:02.4]}
2... d5 {[%clk 0:02:53.9]} 3. e3 {[%clk 0:03:03.2]} 3... c6 {[%clk 0:02:54.1]}
4. Nf3 {[%clk 0:03:03.4]} 4... Qb6 {[%clk 0:02:54.3]} 5. b3 {[%clk 0:03:04.1]}
5... Bg4 {[%clk 0:02:46.5]} 6. h3 {[%clk 0:02:37]} 6... Bh5 {[%clk 0:02:42.1]}
7. Bd3 {[%clk 0:02:31.7]} 7... Nbd7 {[%clk 0:02:40.1]} 8. O-O {[%clk 0:02:29.9]}
8... e6 {[%clk 0:02:36.2]} 9. c4 {[%clk 0:02:30.5]} 9... Be7 {[%clk 0:02:36.1]}
10. Nbd2 {[%clk 0:02:21.1]} 10... O-O {[%clk 0:02:32.6]} 11. c5 {[%clk
0:02:22.2]} 11... Qd8 {[%clk 0:02:29]} 12. b4 {[%clk 0:02:22.9]} 12... b5 {[%clk
0:02:15]} 13. a4 {[%clk 0:02:17.6]} 13... a6 {[%clk 0:02:13.2]} 14. Qc2 {[%clk
0:02:10.3]} 14... Bg6 {[%clk 0:02:08.5]} 15. Bxg6 {[%clk 0:01:55]} 15... hxg6
{[%clk 0:02:10.4]} 16. Ra3 {[%clk 0:01:55]} 16... Qc8 {[%clk 0:01:50.9]} 17.
Rfa1 {[%clk 0:01:54.8]} 17... Qb7 {[%clk 0:01:52.3]} 18. Qa2 {[%clk 0:01:51.2]}
18... bxa4 {[%clk 0:01:31.1]} 19. Rxa4 {[%clk 0:01:51.8]} 19... Ne4 {[%clk
0:01:32.7]} 20. Nxe4 {[%clk 0:01:48.4]} 20... dxe4 {[%clk 0:01:33.4]} 21. Nd2
{[%clk 0:01:48.6]} 21... f5 {[%clk 0:01:24.1]} 22. Qxe6+ {[%clk 0:01:45.8]}
22... Rf7 {[%clk 0:01:22]} 23. d5 {[%clk 0:01:29.1]} 23... Nf8 {[%clk
0:00:24.4]} 24. Qxc6 {[%clk 0:01:29.5]} 24... Bf6 {[%clk 0:00:22.3]} 25. Qxb7
{[%clk 0:01:14.4]} 25... Rxb7 {[%clk 0:00:24.2]} 26. Rxa6 {[%clk 0:01:14.9]}
26... Bxa1 {[%clk 0:00:17.8]} 27. Rxa8 {[%clk 0:01:12.7]} 27... Bc3 {[%clk
0:00:19.7]} 28. c6 {[%clk 0:01:01.2]} 28... Rxb4 {[%clk 0:00:19.9]} 29. c7
{[%clk 0:01:02.1]} 29... Rc4 {[%clk 0:00:21.2]} 30. Nxc4 {[%clk 0:01:02.1]} 1-0

[Event "*** Qualifier 1: Titled Tuesday 3|2 Blitz"]
[Site "Chess.com"]
[Date "2017.04.04"]
[Round "1"]
[White "amaidel"]
[Black "armago"]
[Result "1-0"]
[WhiteElo "2483"]
[BlackElo "2173"]
[TimeControl "180+2"]
[EndTime "13:07:12 PDT"]
[Termination "amaidel won by resignation"]

1. e4 {[%clk 0:03:02]} 1... c5 {[%clk 0:03:00.8]} 2. Nf3 {[%clk 0:03:02.2]} 2...
Nc6 {[%clk 0:03:01.8]} 3. Bb5 {[%clk 0:03:02.5]} 3... g6 {[%clk 0:03:01.2]} 4.
Bxc6 {[%clk 0:03:03]} 4... dxc6 {[%clk 0:03:02.4]} 5. O-O {[%clk 0:03:04.5]}
5... Bg7 {[%clk 0:03:03.1]} 6. Nc3 {[%clk 0:03:05.1]} 6... Nf6 {[%clk
0:03:03.6]} 7. d3 {[%clk 0:03:06.2]} 7... Nd7 {[%clk 0:03:00.8]} 8. Be3 {[%clk
0:03:04.5]} 8... e5 {[%clk 0:02:59.4]} 9. Qd2 {[%clk 0:03:05.2]} 9... h6 {[%clk
0:02:58.4]} 10. a3 {[%clk 0:03:05.4]} 10... Qe7 {[%clk 0:02:58]} 11. b4 {[%clk
0:02:52.7]} 11... cxb4 {[%clk 0:02:47.8]} 12. axb4 {[%clk 0:02:54.6]} 12... Qxb4
{[%clk 0:02:47.6]} 13. Rfb1 {[%clk 0:02:54.9]} 13... Qe7 {[%clk 0:02:48.2]} 14.
Rxa7 {[%clk 0:02:53.3]} 14... Rxa7 {[%clk 0:02:46.3]} 15. Bxa7 {[%clk
0:02:55.2]} 15... O-O {[%clk 0:02:47.1]} 16. Be3 {[%clk 0:02:55.4]} 16... Kh7
{[%clk 0:02:47.1]} 17. Ne2 {[%clk 0:02:49.9]} 17... Re8 {[%clk 0:02:42.2]} 18.
Ng3 {[%clk 0:02:48.2]} 18... Nf8 {[%clk 0:02:41]} 19. c3 {[%clk 0:02:46.5]}
19... Ne6 {[%clk 0:02:41.2]} 20. d4 {[%clk 0:02:46]} 20... exd4 {[%clk
0:02:38.6]} 21. cxd4 {[%clk 0:02:46.5]} 21... Rd8 {[%clk 0:02:40.1]} 22. e5
{[%clk 0:02:41.1]} 22... Nxd4 {[%clk 0:02:32.1]} 23. Bxd4 {[%clk 0:02:36.2]}
23... Bg4 {[%clk 0:02:01.8]} 24. Qe3 {[%clk 0:02:35.6]} 24... Bxf3 {[%clk
0:02:00.9]} 25. gxf3 {[%clk 0:02:37.5]} 25... Rd5 {[%clk 0:01:53.2]} 26. f4
{[%clk 0:02:33.5]} 26... h5 {[%clk 0:01:50.6]} 27. Ne4 {[%clk 0:02:32.6]} 27...
Qd7 {[%clk 0:01:50.7]} 28. Nd6 {[%clk 0:01:48.7]} 28... b5 {[%clk 0:01:37.2]}
29. h3 {[%clk 0:01:47.2]} 29... f6 {[%clk 0:01:22.6]} 30. Ra1 {[%clk 0:01:43.2]}
30... fxe5 {[%clk 0:01:15.4]} 31. fxe5 {[%clk 0:01:45.1]} 31... c5 {[%clk
0:01:10.8]} 32. Bxc5 {[%clk 0:01:18.9]} 32... Rxe5 {[%clk 0:01:09.9]} 33. Ra7
{[%clk 0:01:17.6]} 33... Qe6 {[%clk 0:01:05]} 34. Rxg7+ {[%clk 0:01:15.4]} 34...
Kxg7 {[%clk 0:01:04.9]} 35. Bd4 {[%clk 0:01:16.3]} 35... Kf6 {[%clk 0:01:03.1]}
36. f4 {[%clk 0:01:13.1]} 1-0

[Event "*** Qualifier 1: Titled Tuesday 3|2 Blitz"]
[Site "Chess.com"]
[Date "2017.04.04"]
[Round "1"]
[White "Sven_Tica"]
[Black "P0ubelle"]
[Result "1-0"]
[WhiteElo "2434"]
[BlackElo "2104"]
[TimeControl "180+2"]
[EndTime "13:07:14 PDT"]
[Termination "Sven_Tica won by resignation"]

1. d4 {[%clk 0:03:01.9]} 1... Nf6 {[%clk 0:03:00.4]} 2. c4 {[%clk 0:03:02.2]}
2... g6 {[%clk 0:03:01.6]} 3. Nc3 {[%clk 0:03:02.6]} 3... Bg7 {[%clk 0:03:02.9]}
4. e4 {[%clk 0:03:03.5]} 4... d6 {[%clk 0:03:04.6]} 5. Be2 {[%clk 0:03:04.9]}
5... O-O {[%clk 0:03:04]} 6. Be3 {[%clk 0:03:06.5]} 6... Nc6 {[%clk 0:02:47.2]}
7. g4 {[%clk 0:02:39.5]} 7... e5 {[%clk 0:02:37.3]} 8. d5 {[%clk 0:02:40]} 8...
Nd4 {[%clk 0:02:38.1]} 9. h3 {[%clk 0:02:28.1]} 9... Nxe2 {[%clk 0:01:59.3]} 10.
Ngxe2 {[%clk 0:02:30]} 10... Nd7 {[%clk 0:01:53.3]} 11. Ng3 {[%clk 0:02:27.8]}
11... a5 {[%clk 0:01:52.7]} 12. Qd2 {[%clk 0:02:17.5]} 12... Qh4 {[%clk
0:01:41.9]} 13. Bg5 {[%clk 0:02:12.6]} 13... Bh6 {[%clk 0:01:36.9]} 14. Bxh6
{[%clk 0:02:12.7]} 14... Qe7 {[%clk 0:01:37.9]} 15. Bxf8 {[%clk 0:02:12.7]}
15... Qxf8 {[%clk 0:01:39.8]} 16. O-O-O {[%clk 0:02:13]} 16... b6 {[%clk
0:01:39.5]} 17. Nb5 {[%clk 0:02:13.1]} 17... Qd8 {[%clk 0:01:40]} 18. h4 {[%clk
0:02:11.7]} 18... Ba6 {[%clk 0:01:31.2]} 19. h5 {[%clk 0:02:08.5]} 19... Bxb5
{[%clk 0:01:31.2]} 20. cxb5 {[%clk 0:02:10.4]} 20... Nc5 {[%clk 0:01:31.4]} 21.
Qh6 {[%clk 0:02:06.9]} 21... Qe7 {[%clk 0:01:28.9]} 22. Rhg1 {[%clk 0:02:02.4]}
22... Qf6 {[%clk 0:01:13.2]} 23. Kb1 {[%clk 0:01:37.7]} 23... Qg7 {[%clk
0:01:08.5]} 24. Qxg7+ {[%clk 0:01:35.2]} 24... Kxg7 {[%clk 0:01:10.4]} 25. g5
{[%clk 0:01:33.6]} 25... a4 {[%clk 0:01:09]} 26. h6+ {[%clk 0:01:34.6]} 26...
Kf8 {[%clk 0:01:09.8]} 27. Rgf1 {[%clk 0:01:35.5]} 27... Ra5 {[%clk 0:01:07.4]}
28. f4 {[%clk 0:01:36.7]} 28... Rxb5 {[%clk 0:01:02.8]} 29. fxe5 {[%clk
0:01:37.7]} 29... dxe5 {[%clk 0:01:04.4]} 30. Rf3 {[%clk 0:01:38.9]} 30... Rb4
{[%clk 0:00:56.7]} 31. Rdf1 {[%clk 0:01:12.7]} 31... a3 {[%clk 0:00:44.3]} 32.
Rxa3 {[%clk 0:01:06]} 32... Nxe4 {[%clk 0:00:44.3]} 33. Ra8+ {[%clk 0:01:05]}
33... Ke7 {[%clk 0:00:44.5]} 34. Nxe4 {[%clk 0:01:05.9]} 34... Rxe4 {[%clk
0:00:45.6]} 35. Rh8 {[%clk 0:01:07.5]} 1-0

[Event "*** Qualifier 1: Titled Tuesday 3|2 Blitz"]
[Site "Chess.com"]
[Date "2017.04.04"]
[Round "1"]
[White "Bigfish1995"]
[Black "BogdanDeac"]
[Result "1-0"]
[WhiteElo "2639"]
[BlackElo "2342"]
[TimeControl "180+2"]
[EndTime "13:07:23 PDT"]
[Termination "Bigfish1995 won by resignation"]

1. e4 {[%clk 0:03:02]} 1... c6 {[%clk 0:03:00]} 2. d4 {[%clk 0:03:02]} 2... d5
{[%clk 0:03:00.2]} 3. exd5 {[%clk 0:03:02.7]} 3... cxd5 {[%clk 0:03:00.3]} 4.
Bd3 {[%clk 0:03:03.8]} 4... Nc6 {[%clk 0:03:00.5]} 5. c3 {[%clk 0:03:03.8]} 5...
Qc7 {[%clk 0:03:01.5]} 6. Na3 {[%clk 0:03:03.9]} 6... a6 {[%clk 0:02:57.5]} 7.
Nc2 {[%clk 0:03:04.6]} 7... Nf6 {[%clk 0:02:58.2]} 8. h3 {[%clk 0:03:02.3]} 8...
g6 {[%clk 0:02:57.7]} 9. Nf3 {[%clk 0:03:02]} 9... Bg7 {[%clk 0:02:58.3]} 10.
O-O {[%clk 0:03:02.5]} 10... O-O {[%clk 0:02:58.9]} 11. Re1 {[%clk 0:03:00.9]}
11... Bf5 {[%clk 0:02:53.2]} 12. Bxf5 {[%clk 0:02:56.9]} 12... gxf5 {[%clk
0:02:52.7]} 13. Re2 {[%clk 0:02:38]} 13... e6 {[%clk 0:02:47.3]} 14. Nce1 {[%clk
0:02:38.5]} 14... Ne7 {[%clk 0:02:47.6]} 15. Nd3 {[%clk 0:02:38.2]} 15... Ng6
{[%clk 0:02:48.4]} 16. g3 {[%clk 0:02:33.5]} 16... Ne4 {[%clk 0:02:48.1]} 17.
Kg2 {[%clk 0:02:34.2]} 17... f6 {[%clk 0:02:46]} 18. h4 {[%clk 0:02:16.1]} 18...
h5 {[%clk 0:02:29.8]} 19. Bf4 {[%clk 0:01:51.8]} 19... Qf7 {[%clk 0:02:26.9]}
20. Qb3 {[%clk 0:01:37.6]} 20... Rae8 {[%clk 0:02:19.8]} 21. Rd1 {[%clk
0:01:32]} 21... e5 {[%clk 0:02:12.1]} 22. Bc1 {[%clk 0:01:27.6]} 22... f4 {[%clk
0:01:45.5]} 23. Nb4 {[%clk 0:01:28]} 23... fxg3 {[%clk 0:01:24]} 24. fxg3 {[%clk
0:01:18.7]} 24... exd4 {[%clk 0:00:22.5]} 25. Nxd4 {[%clk 0:01:14.9]} 25... f5
{[%clk 0:00:14.3]} 26. Qxd5 {[%clk 0:01:10.3]} 26... Be5 {[%clk 0:00:08.9]} 27.
Nxf5 {[%clk 0:01:06]} 27... Qxd5 {[%clk 0:00:09.2]} 28. Nxd5 {[%clk 0:01:05.6]}
28... Bxg3 {[%clk 0:00:06.9]} 29. Nxg3 {[%clk 0:01:02.6]} 1-0

[Event "*** Qualifier 1: Titled Tuesday 3|2 Blitz"]
[Site "Chess.com"]
[Date "2017.04.04"]
[Round "1"]
[White "iaraldinho"]
[Black "Grootneus"]
[Result "1-0"]
[WhiteElo "2431"]
[BlackElo "2097"]
[TimeControl "180+2"]
[EndTime "13:07:28 PDT"]
[Termination "iaraldinho won by resignation"]

1. e4 {[%clk 0:03:01.9]} 1... c5 {[%clk 0:03:00.2]} 2. Nf3 {[%clk 0:03:01.3]}
2... Nc6 {[%clk 0:03:01.1]} 3. d4 {[%clk 0:03:02.7]} 3... cxd4 {[%clk 0:03:03]}
4. Nxd4 {[%clk 0:03:04.1]} 4... Nf6 {[%clk 0:03:04.7]} 5. Nc3 {[%clk 0:03:05.6]}
5... e5 {[%clk 0:03:06.3]} 6. Ndb5 {[%clk 0:03:05.9]} 6... d6 {[%clk 0:03:07.9]}
7. Bg5 {[%clk 0:03:06.1]} 7... a6 {[%clk 0:03:09.4]} 8. Bxf6 {[%clk 0:03:08]}
8... gxf6 {[%clk 0:03:11.3]} 9. Na3 {[%clk 0:03:09]} 9... b5 {[%clk 0:03:12.9]}
10. Nd5 {[%clk 0:03:09.2]} 10... f5 {[%clk 0:03:14.6]} 11. Nxb5 {[%clk
0:03:09.1]} 11... axb5 {[%clk 0:03:15.6]} 12. Bxb5 {[%clk 0:03:10.7]} 12... Bb7
{[%clk 0:03:12.6]} 13. exf5 {[%clk 0:03:11.8]} 13... Bg7 {[%clk 0:03:09.1]} 14.
O-O {[%clk 0:03:12.4]} 14... O-O {[%clk 0:03:02.3]} 15. c3 {[%clk 0:03:10.7]}
15... Ne7 {[%clk 0:02:50]} 16. Nxe7+ {[%clk 0:02:47.8]} 16... Qxe7 {[%clk
0:02:51.9]} 17. a4 {[%clk 0:02:47.4]} 17... e4 {[%clk 0:02:40.5]} 18. a5 {[%clk
0:02:44.1]} 18... Qe5 {[%clk 0:02:10.6]} 19. Qe2 {[%clk 0:02:36.9]} 19... Qxf5
{[%clk 0:01:16.6]} 20. a6 {[%clk 0:02:32.5]} 20... Bd5 {[%clk 0:01:17.2]} 21.
Rfd1 {[%clk 0:02:24.8]} 21... Kh8 {[%clk 0:01:14.3]} 22. Qe3 {[%clk 0:02:14.3]}
22... Rg8 {[%clk 0:01:03.6]} 23. Bf1 {[%clk 0:01:56.5]} 23... Bf6 {[%clk
0:00:54.4]} 24. Ra5 {[%clk 0:01:54.8]} 24... Be5 {[%clk 0:00:37.3]} 25. Raxd5
{[%clk 0:01:46.9]} 25... Qg4 {[%clk 0:00:24.6]} 26. g3 {[%clk 0:01:46.8]} 26...
f5 {[%clk 0:00:21]} 27. Ra1 {[%clk 0:01:38.5]} 27... Rg6 {[%clk 0:00:15.2]} 28.
a7 {[%clk 0:01:35.1]} 28... Qh5 {[%clk 0:00:11.1]} 29. Rxe5 {[%clk 0:01:26.7]}
29... dxe5 {[%clk 0:00:12.1]} 30. Qc5 {[%clk 0:01:27.2]} 30... f4 {[%clk
0:00:09]} 31. Qd5 {[%clk 0:01:28.3]} 31... Rgg8 {[%clk 0:00:09.2]} 32. Qxe4
{[%clk 0:01:26.7]} 32... Qg6 {[%clk 0:00:09.7]} 33. Qxg6 {[%clk 0:01:26.9]}
33... hxg6 {[%clk 0:00:09.8]} 34. Bg2 {[%clk 0:01:28.3]} 34... Kg7 {[%clk
0:00:11.7]} 35. Bxa8 {[%clk 0:01:28.1]} 35... Rxa8 {[%clk 0:00:13.6]} 36. b4
{[%clk 0:01:29.4]} 36... Kf6 {[%clk 0:00:14.6]} 37. b5 {[%clk 0:01:30.6]} 37...
f3 {[%clk 0:00:16.3]} 38. b6 {[%clk 0:01:31.3]} 1-0

[Event "*** Qualifier 1: Titled Tuesday 3|2 Blitz"]
[Site "Chess.com"]
[Date "2017.04.04"]
[Round "1"]
[White "korason34"]
[Black "FairChess_on_YouTube"]
[Result "0-1"]
[WhiteElo "2353"]
[BlackElo "2739"]
[TimeControl "180+2"]
[EndTime "13:07:35 PDT"]
[Termination "FairChess_on_YouTube won by resignation"]

1. d4 {[%clk 0:03:02]} 1... d5 {[%clk 0:02:58.8]} 2. c4 {[%clk 0:03:01.9]} 2...
c6 {[%clk 0:02:59.8]} 3. Nf3 {[%clk 0:03:01.4]} 3... Nf6 {[%clk 0:03:00.2]} 4.
Nc3 {[%clk 0:03:00.4]} 4... a6 {[%clk 0:03:00.9]} 5. c5 {[%clk 0:03:00.6]} 5...
g6 {[%clk 0:02:59.1]} 6. e3 {[%clk 0:02:53.3]} 6... Bg7 {[%clk 0:02:59.4]} 7.
Bd3 {[%clk 0:02:54.4]} 7... Bg4 {[%clk 0:02:58.2]} 8. O-O {[%clk 0:02:52.3]}
8... O-O {[%clk 0:02:54.7]} 9. b4 {[%clk 0:02:52.1]} 9... Nbd7 {[%clk
0:02:52.3]} 10. Bb2 {[%clk 0:02:52.1]} 10... e5 {[%clk 0:02:52.5]} 11. Be2
{[%clk 0:02:46.8]} 11... e4 {[%clk 0:02:46.1]} 12. Nd2 {[%clk 0:02:43.8]} 12...
h5 {[%clk 0:02:46.7]} 13. a4 {[%clk 0:02:42.7]} 13... Bxe2 {[%clk 0:02:38.1]}
14. Qxe2 {[%clk 0:02:41.7]} 14... Ng4 {[%clk 0:02:38.6]} 15. b5 {[%clk
0:02:37.7]} 15... Qc7 {[%clk 0:02:15.3]} 16. g3 {[%clk 0:02:29.2]} 16... f5
{[%clk 0:02:16]} 17. bxc6 {[%clk 0:02:21.7]} 17... bxc6 {[%clk 0:02:15.4]} 18.
a5 {[%clk 0:02:22.1]} 18... h4 {[%clk 0:02:13.9]} 19. Na4 {[%clk 0:02:20.2]}
19... Bh6 {[%clk 0:01:47.8]} 20. Nb6 {[%clk 0:02:17.6]} 20... hxg3 {[%clk
0:01:46.9]} 21. hxg3 {[%clk 0:02:14]} 21... Bxe3 {[%clk 0:01:47.3]} 22. Kg2
{[%clk 0:01:39.7]} 22... Bxd2 {[%clk 0:01:45]} 23. Nxa8 {[%clk 0:01:33.7]} 23...
Rxa8 {[%clk 0:01:45.3]} 24. Qxd2 {[%clk 0:01:34.2]} 24... e3 {[%clk 0:01:46.5]}
25. fxe3 {[%clk 0:01:32]} 25... Ndf6 {[%clk 0:01:46.7]} 26. Rf3 {[%clk
0:01:28.4]} 26... Ne4 {[%clk 0:01:43.9]} 27. Qe2 {[%clk 0:01:29.3]} 27... Rb8
{[%clk 0:01:42.9]} 28. Ra2 {[%clk 0:01:12.2]} 28... Qh7 {[%clk 0:01:40.8]} 29.
Kg1 {[%clk 0:01:06.6]} 29... Kf7 {[%clk 0:01:30]} 30. Qg2 {[%clk 0:01:01.3]}
30... Ke6 {[%clk 0:01:25.8]} 31. Ra3 {[%clk 0:00:45.1]} 31... Qb7 {[%clk
0:01:20.8]} 32. Ra2 {[%clk 0:00:42.2]} 32... Rh8 {[%clk 0:01:17.1]} 33. Bc1
{[%clk 0:00:16.1]} 33... Qb1 {[%clk 0:01:08.6]} 34. Qd2 {[%clk 0:00:15.5]} 34...
Nxd2 {[%clk 0:01:08.3]} 35. Rxd2 {[%clk 0:00:15.3]} 35... Qxc1+ {[%clk
0:01:08.3]} 0-1

[Event "*** Qualifier 1: Titled Tuesday 3|2 Blitz"]
[Site "Chess.com"]
[Date "2017.04.04"]
[Round "1"]
[White "Generalas"]
[Black "Ginger_GM"]
[Result "0-1"]
[WhiteElo "2176"]
[BlackElo "2477"]
[TimeControl "180+2"]
[EndTime "13:07:36 PDT"]
[Termination "Ginger_GM won on time"]

1. e4 {[%clk 0:03:02]} 1... g6 {[%clk 0:02:59.3]} 2. d4 {[%clk 0:03:01.5]} 2...
Bg7 {[%clk 0:02:59.4]} 3. Nf3 {[%clk 0:02:57]} 3... d6 {[%clk 0:02:59.5]} 4. Be2
{[%clk 0:02:34.4]} 4... Nf6 {[%clk 0:02:59.1]} 5. Nc3 {[%clk 0:02:34]} 5... O-O
{[%clk 0:02:58.3]} 6. O-O {[%clk 0:02:30.7]} 6... a6 {[%clk 0:02:53.7]} 7. a4
{[%clk 0:02:30.2]} 7... Nc6 {[%clk 0:02:37.7]} 8. h3 {[%clk 0:02:28.8]} 8... e5
{[%clk 0:02:35.1]} 9. d5 {[%clk 0:02:01.4]} 9... Ne7 {[%clk 0:02:33]} 10. Be3
{[%clk 0:01:48.7]} 10... h6 {[%clk 0:02:31.4]} 11. Qd2 {[%clk 0:01:48.8]} 11...
Kh7 {[%clk 0:02:31.8]} 12. Rad1 {[%clk 0:01:44.6]} 12... Nfg8 {[%clk 0:02:27.1]}
13. Nh2 {[%clk 0:01:39.6]} 13... f5 {[%clk 0:02:26.2]} 14. f4 {[%clk 0:01:36.6]}
14... g5 {[%clk 0:01:57.3]} 15. exf5 {[%clk 0:01:19.7]} 15... gxf4 {[%clk
0:01:53.5]} 16. Bxf4 {[%clk 0:00:55]} 16... exf4 {[%clk 0:01:51.9]} 17. Qxf4
{[%clk 0:00:54.8]} 17... Nxf5 {[%clk 0:01:47.3]} 18. Bd3 {[%clk 0:00:53.3]}
18... Kh8 {[%clk 0:01:46.9]} 19. g4 {[%clk 0:00:45.2]} 19... Bd4+ {[%clk
0:01:26.8]} 20. Kh1 {[%clk 0:00:41.7]} 20... Be5 {[%clk 0:01:25.7]} 21. Qc4
{[%clk 0:00:21]} 21... Ng3+ {[%clk 0:01:23.9]} 22. Kg2 {[%clk 0:00:21.5]} 22...
Nxf1 {[%clk 0:01:21.3]} 23. Rxf1 {[%clk 0:00:18.2]} 23... Rxf1 {[%clk
0:01:19.8]} 24. Nxf1 {[%clk 0:00:09.3]} 24... Bd7 {[%clk 0:01:04.7]} 25. Ne4
{[%clk 0:00:08.3]} 25... Nf6 {[%clk 0:01:03.3]} 26. Neg3 {[%clk 0:00:07.1]}
26... Nxd5 {[%clk 0:00:58.7]} 27. Qe4 {[%clk 0:00:02.5]} 27... Nf4+ {[%clk
0:00:48.7]} 28. Kg1 {[%clk 0:00:02.2]} 28... Nxd3 {[%clk 0:00:48.5]} 0-1

[Event "*** Qualifier 1: Titled Tuesday 3|2 Blitz"]
[Site "Chess.com"]
[Date "2017.04.04"]
[Round "1"]
[White "nouma78"]
[Black "VladDobrov"]
[Result "0-1"]
[WhiteElo "2211"]
[BlackElo "2522"]
[TimeControl "180+2"]
[EndTime "13:07:43 PDT"]
[Termination "VladDobrov won by resignation"]

1. d4 {[%clk 0:03:02]} 1... Nf6 {[%clk 0:02:59.7]} 2. c4 {[%clk 0:03:02.2]} 2...
e6 {[%clk 0:02:58.3]} 3. Nc3 {[%clk 0:03:00.2]} 3... Bb4 {[%clk 0:02:58.4]} 4.
Qc2 {[%clk 0:03:00.6]} 4... O-O {[%clk 0:02:55.2]} 5. a3 {[%clk 0:03:00.1]} 5...
Bxc3+ {[%clk 0:02:56.1]} 6. Qxc3 {[%clk 0:03:01]} 6... b5 {[%clk 0:02:56.8]} 7.
cxb5 {[%clk 0:02:37.6]} 7... c6 {[%clk 0:02:56.8]} 8. Bg5 {[%clk 0:02:23.8]}
8... cxb5 {[%clk 0:02:55.4]} 9. e3 {[%clk 0:02:17.7]} 9... Bb7 {[%clk 0:02:56]}
10. Nf3 {[%clk 0:02:13.6]} 10... h6 {[%clk 0:02:56.5]} 11. Bxf6 {[%clk 0:02:10]}
11... Qxf6 {[%clk 0:02:58.4]} 12. Qc7 {[%clk 0:02:06.3]} 12... Bxf3 {[%clk
0:02:41.3]} 13. gxf3 {[%clk 0:02:06.8]} 13... Qxf3 {[%clk 0:02:39]} 14. Rg1
{[%clk 0:02:07.2]} 14... Nc6 {[%clk 0:02:05.1]} 15. Qxd7 {[%clk 0:02:04.9]}
15... Rad8 {[%clk 0:01:50]} 16. Qc7 {[%clk 0:02:01.2]} 16... Rc8 {[%clk
0:01:46.6]} 17. Qg3 {[%clk 0:01:58.4]} 17... Qxg3 {[%clk 0:01:41.7]} 18. hxg3
{[%clk 0:01:58.3]} 18... a6 {[%clk 0:01:36.1]} 19. Bd3 {[%clk 0:01:58.8]} 19...
e5 {[%clk 0:01:33.1]} 20. d5 {[%clk 0:01:43.3]} 20... Na5 {[%clk 0:01:33.9]} 21.
Rd1 {[%clk 0:01:18.9]} 21... f5 {[%clk 0:01:33]} 22. e4 {[%clk 0:01:14]} 22...
f4 {[%clk 0:01:33.9]} 23. gxf4 {[%clk 0:01:14.2]} 23... Rxf4 {[%clk 0:01:33.3]}
24. Ke2 {[%clk 0:00:59.6]} 24... Nb3 {[%clk 0:01:32.2]} 25. Bb1 {[%clk
0:00:49.9]} 25... g5 {[%clk 0:01:31.6]} 26. f3 {[%clk 0:00:48]} 26... Nd4+
{[%clk 0:01:25.2]} 27. Rxd4 {[%clk 0:00:39.8]} 27... exd4 {[%clk 0:01:24.9]} 28.
e5 {[%clk 0:00:40.8]} 28... Kg7 {[%clk 0:01:21.2]} 29. Be4 {[%clk 0:00:40.5]}
29... Re8 {[%clk 0:01:12.9]} 30. e6 {[%clk 0:00:35.8]} 30... Kf6 {[%clk
0:01:12.3]} 31. Kd3 {[%clk 0:00:29.5]} 31... Ke5 {[%clk 0:01:12.5]} 32. Rc1
{[%clk 0:00:20.4]} 32... g4 {[%clk 0:01:04.2]} 33. Re1 {[%clk 0:00:21]} 33... g3
{[%clk 0:00:55.2]} 0-1